fUSD/lending_fUSD_20250503
["ID","MTS","AMOUNT","RATE_DAILY","PERIOD"]
[359704228,1746267123837,-150.0,0.000197,2]
[359704229,1746267123862,-349.8275082,0.00019702,2]
[359704230,1746267123887,-263.945068,0.0001973,2]
[359704231,1746267123912,-349.8275082,0.0001973,2]
[359704232,1746267123935,-300.0,0.00019742,2]
[359704233,1746267123968,-940.15262183,0.00019743,2]
[359704234,1746267124001,-940.15262183,0.00019743,2]
[359704235,1746267124035,-940.15262183,0.00019743,2]
[359704236,1746267124071,-940.15262183,0.00019743,2]
[359704237,1746267124106,-940.15262183,0.00019743,2]
[359704238,1746267124139,-940.15262183,0.00019743,2]
[359704239,1746267124172,-940.15262183,0.00019743,2]
[359704240,1746267124204,-940.15262183,0.00019743,2]
[359704241,1746267124236,-940.15262183,0.00019743,2]
[359704242,1746267124267,-940.15262183,0.00019743,2]
[359704243,1746267124299,-940.15262183,0.00019743,2]
[359704244,1746267124329,-940.15262183,0.00019743,2]
[359704245,1746267124360,-940.15262183,0.00019743,2]
[359704246,1746267124390,-940.15262183,0.00019743,2]
[359704247,1746267124422,-940.15262183,0.00019743,2]
[359704248,1746267124452,-940.15262183,0.00019743,2]
[359704249,1746267124481,-940.15262183,0.00019743,2]
[359704250,1746267124512,-940.15262183,0.00019743,2]
[359704251,1746267124540,-940.15262183,0.00019743,2]
[359704252,1746267124569,-940.15262183,0.00019743,2]
[359704253,1746267124598,-940.15262183,0.00019743,2]
[359704254,1746267124628,-940.15262183,0.00019743,2]
[359704255,1746267124657,-940.15262183,0.00019743,2]
[359704256,1746267124685,-940.15262183,0.00019743,2]
[359704257,1746267124713,-940.15262183,0.00019743,2]
[359704258,1746267124744,-940.15262183,0.00019743,2]
[359704259,1746267124776,-940.15262183,0.00019743,2]
[359704260,1746267124808,-940.15262183,0.00019743,2]
[359704261,1746267124841,-940.15262183,0.00019743,2]
[359704262,1746267124875,-940.15262183,0.00019743,2]
[359704263,1746267124908,-940.15262183,0.00019743,2]
[359704264,1746267124942,-940.15262183,0.00019743,2]
[359704265,1746267124975,-940.15262183,0.00019743,2]
[359704266,1746267125008,-940.15262183,0.00019743,2]
[359704267,1746267125044,-940.15262183,0.00019743,2]
[359704268,1746267125079,-940.15262183,0.00019743,2]
[359704269,1746267125112,-940.15262183,0.00019743,2]
[359704270,1746267125145,-940.15262183,0.00019743,2]
[359704271,1746267125179,-940.15262183,0.00019743,2]
[359704272,1746267125210,-940.15262183,0.00019743,2]
[359704273,1746267125242,-940.15262183,0.00019743,2]
[359704274,1746267125274,-940.15262183,0.00019743,2]
[359704275,1746267125306,-940.15262183,0.00019743,2]
[359704276,1746267125339,-940.15262183,0.00019743,2]
[359704277,1746267125371,-940.15262183,0.00019743,2]
[359704278,1746267125404,-940.15262183,0.00019743,2]
[359704279,1746267125436,-940.15262183,0.00019743,2]
[359704280,1746267125467,-940.15262183,0.00019743,2]
[359704281,1746267125500,-940.15262183,0.00019743,2]
[359704282,1746267125532,-940.15262183,0.00019743,2]
[359704283,1746267125567,-940.15262183,0.00019743,2]
[359704284,1746267125600,-940.15262183,0.00019743,2]
[359704285,1746267125631,-940.15262183,0.00019743,2]
[359704286,1746267125662,-940.15262183,0.00019743,2]
[359704287,1746267125692,-940.15262183,0.00019743,2]
[359704288,1746267125723,-940.15262183,0.00019743,2]
[359704289,1746267125751,-940.15262183,0.00019743,2]
[359704290,1746267125779,-940.15262183,0.00019743,2]
[359704291,1746267125807,-940.15262183,0.00019743,2]
[359704292,1746267125839,-940.15262183,0.00019743,2]
[359704293,1746267125870,-940.15262183,0.00019743,2]
[359704294,1746267125900,-940.15262183,0.00019743,2]
[359704295,1746267125929,-940.15262183,0.00019743,2]
[359704296,1746267125957,-940.15262183,0.00019743,2]
[359704297,1746267125987,-940.15262183,0.00019743,2]
[359704298,1746267126018,-940.15262183,0.00019743,2]
[359704299,1746267126048,-940.15262183,0.00019743,2]
[359704300,1746267126078,-940.15262183,0.00019743,2]
[359704301,1746267126108,-940.15262183,0.00019743,2]
[359704302,1746267126137,-940.15262183,0.00019743,2]
[359704303,1746267126166,-940.15262183,0.00019743,2]
[359704304,1746267126195,-940.15262183,0.00019743,2]
[359704305,1746267126225,-940.15262183,0.00019743,2]
[359704306,1746267126254,-940.15262183,0.00019743,2]
[359704307,1746267126284,-940.15262183,0.00019743,2]
[359704308,1746267126312,-940.15262183,0.00019743,2]
[359704309,1746267126340,-940.15262183,0.00019743,2]
[359704310,1746267126368,-940.15262182,0.00019743,2]
[359704311,1746267126395,-940.15262182,0.00019743,2]
[359704312,1746267126434,-940.15262182,0.00019743,2]
[359704313,1746267126467,-940.15262182,0.00019743,2]
[359704314,1746267126495,-940.15262182,0.00019743,2]
[359704315,1746267126523,-940.15262182,0.00019743,2]
[359704316,1746267126553,-940.15262182,0.00019743,2]
[359704317,1746267126581,-940.15262182,0.00019743,2]
[359704318,1746267126609,-940.15262182,0.00019743,2]
[359704319,1746267126630,-450.0,0.00019744,2]
[359704320,1746267126653,-603.1,0.00019744,2]
[359704321,1746267126674,-469.57039548,0.00019744,2]
[359704322,1746267126696,-450.0,0.00019744,2]
[359704323,1746267126719,-450.0,0.00019744,2]
[359704324,1746267126740,-450.0,0.00019744,2]
[359704325,1746267126761,-450.0,0.00019744,2]
[359704326,1746267126782,-450.0,0.00019744,2]
[359704327,1746267126804,-450.0,0.00019744,2]
[359704328,1746267126825,-450.0,0.00019744,2]
[359704329,1746267126847,-450.0,0.00019744,2]
[359704330,1746267126869,-450.0,0.00019744,2]
[359704331,1746267126891,-450.0,0.00019744,2]
[359704332,1746267126913,-450.0,0.00019744,2]
[359704333,1746267126935,-450.0,0.00019744,2]
[359704334,1746267126957,-931.93,0.00019744,2]
[359704335,1746267126983,-450.0,0.00019744,2]
[359704336,1746267127006,-262.06003719,0.00019744,2]
[359704337,1746267127028,-450.0,0.00019744,2]
[359704338,1746267127051,-1274.14,0.00019744,2]
[359704339,1746267127074,-450.0,0.00019744,2]
[359704340,1746267127096,-450.0,0.00019744,2]
[359704341,1746267127119,-450.0,0.00019744,2]
[359704342,1746267127142,-315.24568991,0.00019744,2]
[359704343,1746267127165,-450.0,0.00019744,2]
[359704344,1746267127186,-450.0,0.00019745,2]
[359704345,1746267127208,-693.88,0.00019745,2]
[359704346,1746267127229,-450.0,0.00019745,2]
[359704347,1746267127251,-450.0,0.00019745,2]
[359704348,1746267127272,-1546.89,0.00019745,2]
[359704349,1746267127296,-5016.32,0.00019745,2]
[359704350,1746267127318,-450.0,0.00019745,2]
[359704351,1746267127340,-450.0,0.00019745,2]
[359704352,1746267127639,-450.0,0.00019745,2]
[359704353,1746267127661,-450.0,0.00019745,2]
[359704354,1746267127683,-450.0,0.00019745,2]
[359704355,1746267127704,-525.22,0.00019745,2]
[359704356,1746267127725,-13567.49,0.00019745,2]
[359704357,1746267127746,-450.0,0.00019745,2]
[359704358,1746267127766,-450.0,0.00019745,2]
[359704359,1746267127787,-464.14593802,0.00019745,2]
[359704360,1746267127809,-489.46,0.00019745,2]
[359704361,1746267127830,-450.0,0.00019745,2]
[359704362,1746267127852,-205.70456391,0.00019745,2]
[359704363,1746267127875,-450.0,0.00019745,2]
[359704364,1746267127897,-450.0,0.00019745,2]
[359704365,1746267127918,-492.78,0.00019745,2]
[359704366,1746267127940,-450.0,0.00019745,2]
[359704367,1746267127963,-91193.45,0.00019745,2]
[359704368,1746267127985,-450.0,0.00019745,2]
[359704369,1746267128007,-518.67,0.00019745,2]
[359704370,1746267128029,-450.0,0.00019745,2]
[359704371,1746267128053,-560.84,0.00019745,2]
[359704372,1746267128076,-539.92,0.00019745,2]
[359704373,1746267128098,-450.0,0.00019745,2]
[359704374,1746267128120,-367.45052593,0.00019745,2]
[359704375,1746267128141,-451.7021702,0.00019745,2]
[359704376,1746267128164,-728.5,0.00019745,2]
[359704377,1746267128185,-450.0,0.00019745,2]
[359704378,1746267128207,-450.0,0.00019745,2]
[359704379,1746267128228,-450.0,0.00019745,2]
[359704380,1746267128249,-450.0,0.00019745,2]
[359704381,1746267128270,-450.0,0.00019745,2]
[359704382,1746267128292,-450.0,0.00019745,2]
[359704383,1746267128314,-450.0,0.00019745,2]
[359704384,1746267128337,-2147.15,0.00019745,2]
[359704385,1746267128359,-548.46,0.00019745,2]
[359704386,1746267128380,-450.0,0.00019745,2]
[359704387,1746267128404,-450.0,0.00019745,2]
[359704388,1746267128426,-450.0,0.00019745,2]
[359704389,1746267128447,-1591.28,0.00019745,2]
[359704390,1746267128469,-450.0,0.00019745,2]
[359704391,1746267128500,-322.61977121,0.00019745,2]
[359704392,1746267128521,-450.0,0.00019745,2]
[359704393,1746267128542,-839.32,0.00019745,2]
[359704394,1746267128563,-593.21,0.00019745,2]
[359704395,1746267128585,-450.0,0.00019745,2]
[359704396,1746267128606,-450.0,0.00019745,2]
[359704397,1746267128627,-450.0,0.00019745,2]
[359704398,1746267128648,-450.0,0.00019745,2]
[359704399,1746267128671,-1274.14,0.00019748,2]
[359704400,1746267128694,-263.945068,0.00019758,2]
[359704401,1746267128716,-349.8275082,0.00019758,2]
[359704402,1746267128737,-500.0,0.00019773,2]
[359704403,1746267128759,-263.945068,0.00019787,2]
[359704404,1746267128782,-349.8275082,0.00019787,2]
[359704405,1746267128805,-474.437554,0.00019799,2]
[359704406,1746267128827,-263.945068,0.00019815,2]
[359704407,1746267128850,-349.8275082,0.00019815,2]
[359704408,1746267128874,-263.945068,0.00019843,2]
[359704409,1746267128896,-349.8275082,0.00019843,2]
[359704410,1746267128919,-263.945068,0.00019872,2]
[359704411,1746267128942,-349.8275082,0.00019872,2]
[359704412,1746267128964,-151.0,0.00019884,2]
[359704413,1746267128985,-205.57268741,0.000199,3]
[359704414,1746267129007,-602.38001494,0.000199,2]
[359704415,1746267129029,-8878.99509634,0.000199,2]
[359704416,1746267129053,-263.945068,0.000199,2]
[359704417,1746267129075,-1061.22633838,0.000199,2]
[359704418,1746267129099,-349.8275082,0.000199,2]
[359704419,1746267129123,-206.00517044,0.000199,2]
[359704420,1746267129145,-151.0,0.00019913,2]
[359704421,1746267129165,-151.0,0.00019942,2]
[359704422,1746267129185,-151.0,0.00019969,2]
[359704423,1746267129206,-500.0,0.00019973,2]
[359704424,1746267129228,-500.0,0.00019973,2]
[359704425,1746267129248,-500.0,0.00019973,2]
[359704426,1746267129271,-1274.14,0.00019985,2]
[359704427,1746267129294,-1274.14,0.00019985,2]
[359704428,1746267129317,-1274.14,0.00019985,2]
[359704429,1746267129338,-9475.4374813,0.00019986,2]
[359704430,1746267129358,-30513.6378157,0.00019986,2]
[359704431,1746267129381,-1274.14,0.00019999,2]
[359704432,1746267129404,-1274.14,0.00019999,2]
[359704433,1746267129426,-1274.14,0.00019999,2]
[359704434,1746267129449,-1274.14,0.00019999,2]
[359704435,1746267129471,-1274.14,0.00019999,2]
[359704436,1746267129494,-1274.14,0.00019999,2]
[359704437,1746267129516,-1274.14,0.00019999,2]
[359704438,1746267129538,-1274.14,0.00019999,2]
[359704439,1746267129560,-1274.14,0.00019999,2]
[359704440,1746267129584,-1274.14,0.00019999,2]
[359704441,1746267129607,-1274.14,0.00019999,2]
[359704442,1746267129630,-1274.14,0.00019999,2]
[359704443,1746267129651,-1274.14,0.00019999,2]
[359704444,1746267129674,-1274.14,0.00019999,2]
[359704445,1746267129695,-1274.14,0.00019999,2]
[359704446,1746267129719,-1274.14,0.00019999,2]
[359704447,1746267129740,-1274.14,0.00019999,2]
[359704448,1746267129763,-1274.14,0.00019999,2]
[359704449,1746267129786,-1274.19049907,0.00019999,2]
[359704450,1746267129809,-1814.0,0.0002,2]
[359704451,1746267129830,-271.4745152,0.0002,2]
[359704452,1746267129854,-830837.69271648,0.0002,2]
[359704453,1746267144172,10000.0,0.0003,30]
[359704454,1746267152408,597.93336191,0.00030136,120]
[359704455,1746267210909,-1833.83444897,0.000197,2]
[359704456,1746267210932,-450.0,0.00019744,2]
[359704457,1746267210954,-185.83,0.00019744,2]
[359704458,1746267210976,-450.0,0.00019744,2]
[359704459,1746267211002,-450.0,0.00019744,2]
[359704460,1746267211023,-450.0,0.00019744,2]
[359704461,1746267211044,-1021.15,0.00019744,2]
[359704462,1746267211066,-450.0,0.00019744,2]
[359704463,1746267211089,-450.0,0.00019744,2]
[359704464,1746267211111,-450.0,0.00019744,2]
[359704465,1746267211132,-1049.42,0.00019744,2]
[359704466,1746267211153,-450.0,0.00019744,2]
[359704467,1746267211174,-450.0,0.00019744,2]
[359704468,1746267211196,-450.0,0.00019744,2]
[359704469,1746267211217,-450.0,0.00019744,2]
[359704470,1746267211240,-450.0,0.00019744,2]
[359704471,1746267211262,-519.13,0.00019744,2]
[359704472,1746267211286,-450.0,0.00019744,2]
[359704473,1746267211309,-450.0,0.00019744,2]
[359704474,1746267211332,-651.84,0.00019744,2]
[359704475,1746267211354,-450.0,0.00019744,2]
[359704476,1746267211375,-562.31,0.00019744,2]
[359704477,1746267211397,-450.0,0.00019744,2]
[359704478,1746267211419,-3394.36,0.00019744,2]
[359704479,1746267211442,-981.84,0.00019744,2]
[359704480,1746267211463,-450.0,0.00019744,2]
[359704481,1746267211485,-452.25,0.00019744,2]
[359704482,1746267211505,-450.0,0.00019744,2]
[359704483,1746267211526,-1185.36,0.00019744,2]
[359704484,1746267211844,-450.0,0.00019744,2]
[359704485,1746267211867,-450.0,0.00019744,2]
[359704486,1746267211888,-488.99,0.00019744,2]
[359704487,1746267211910,-463.77,0.00019744,2]
[359704488,1746267211932,-468.13,0.00019745,2]
[359704489,1746267211954,-541.99,0.00019745,2]
[359704490,1746267211975,-450.0,0.00019745,2]
[359704491,1746267211996,-625.41,0.00019745,2]
[359704492,1746267212018,-632.11,0.00019745,2]
[359704493,1746267212046,-1562.09,0.00019745,2]
[359704494,1746267212068,-450.0,0.00019745,2]
[359704495,1746267212090,-450.0,0.00019745,2]
[359704496,1746267212112,-450.0,0.00019745,2]
[359704497,1746267212133,-450.0,0.00019745,2]
[359704498,1746267212154,-3561.89,0.00019745,2]
[359704499,1746267212176,-620.44,0.00019745,2]
[359704500,1746267212197,-450.0,0.00019745,2]
[359704501,1746267212218,-1016.02,0.00019745,2]
[359704502,1746267212240,-459.74803943,0.00019745,2]
[359704503,1746267212261,-642.55,0.00019745,2]
[359704504,1746267212282,-450.0,0.00019745,2]
[359704505,1746267212304,-450.0,0.00019745,2]
[359704506,1746267212327,-450.0,0.00019745,2]
[359704507,1746267212348,-450.0,0.00019745,2]
[359704508,1746267212369,-734.95,0.00019745,2]
[359704509,1746267212390,-300.0,0.00019745,2]
[359704510,1746267212410,-296.76811215,0.00019745,2]
[359704511,1746267212431,-2482.35,0.00019745,2]
[359704512,1746267212457,-574.71,0.00019745,2]
[359704513,1746267212479,-450.0,0.00019745,2]
[359704514,1746267212500,-761.95,0.00019745,2]
[359704515,1746267212522,-365.0454029,0.00019745,2]
[359704516,1746267212548,-1569.18,0.00019745,2]
[359704517,1746267212570,-676.05,0.00019745,2]
[359704518,1746267212591,-450.0,0.00019745,2]
[359704519,1746267212613,-481.13778708,0.00019745,2]
[359704520,1746267212635,-450.0,0.00019745,2]
[359704521,1746267212656,-450.0,0.00019745,2]
[359704522,1746267212679,-556.61,0.00019745,2]
[359704523,1746267212701,-671.26,0.00019745,2]
[359704524,1746267212725,-822.18,0.00019745,2]
[359704525,1746267212747,-507.92,0.00019745,2]
[359704526,1746267212769,-704.21,0.00019745,2]
[359704527,1746267212794,-951.17,0.00019745,2]
[359704528,1746267212816,-450.0,0.00019745,2]
[359704529,1746267212839,-450.0,0.00019745,2]
[359704530,1746267212866,-819.17,0.00019745,2]
[359704531,1746267212889,-537.81,0.00019745,2]
[359704532,1746267212912,-794.91,0.00019745,2]
[359704533,1746267212934,-450.0,0.00019745,2]
[359704534,1746267212957,-450.0,0.00019745,2]
[359704535,1746267212980,-4430.57,0.00019745,2]
[359704536,1746267213002,-450.0,0.00019745,2]
[359704537,1746267213024,-450.7156763,0.00019799,2]
[359704538,1746267213046,-500.0,0.0001984,2]
[359704539,1746267213068,-2000.0,0.0001984,2]
[359704540,1746267213090,-200.0,0.0001984,2]
[359704541,1746267213112,-401.58667662,0.000199,2]
[359704542,1746267213134,-5919.33006422,0.000199,2]
[359704543,1746267213156,-500.0,0.00019973,2]
[359704544,1746267213178,-1275.7911693,0.00019986,2]
[359704545,1746267213200,-222443.7879743,0.00019986,2]
[359704546,1746267213223,-151.0,0.00019988,2]
[359704547,1746267213245,-668.65185757,0.00019988,2]
[359704548,1746267213268,-207.4,0.00019988,2]
[359704549,1746267213290,-300.0,0.00019999,2]
[359704550,1746267213312,-500.0,0.00019999,2]
[359704551,1746267213334,-679.71892541,0.00019999,2]
[359704552,1746267213358,-500.0,0.00019999,2]
[359704553,1746267213381,-9999.99,0.00019999,2]
[359704554,1746267213405,-450.0,0.00019999,2]
[359704555,1746267213429,-560.66,0.00019999,2]
[359704556,1746267213455,-450.0,0.00019999,2]
[359704557,1746267213479,-450.0,0.00019999,2]
[359704558,1746267213501,-452.00734145,0.00019999,2]
[359704559,1746267213525,-450.0,0.00019999,2]
[359704560,1746267213549,-1637.0,0.0002,2]
[359704561,1746267213574,-828123.9465243,0.0002,2]
[359704562,1746267238250,-450.0,0.00019744,2]
[359704563,1746267238274,-431.8795421,0.00019744,2]
[359704564,1746267238297,-450.0,0.00019744,2]
[359704565,1746267238321,-450.0,0.00019744,2]
[359704566,1746267238344,-755.05,0.00019745,2]
[359704567,1746267238368,-450.0,0.00019745,2]
[359704568,1746267238392,-450.0,0.00019745,2]
[359704569,1746267238415,-813.95,0.00019745,2]
[359704570,1746267238439,-450.0,0.00019745,2]
[359704571,1746267238466,-515.0,0.00019745,2]
[359704572,1746267238489,-534.49,0.00019745,2]
[359704573,1746267238511,-450.0,0.00019745,2]
[359704574,1746267238537,-450.0,0.00019745,2]
[359704575,1746267238560,-4938.04,0.00019745,2]
[359704576,1746267238581,-1431.57,0.00019745,2]
[359704577,1746267238602,-450.0,0.00019745,2]
[359704578,1746267238624,-450.0,0.00019745,2]
[359704579,1746267238646,-461.16882008,0.00019745,2]
[359704580,1746267238673,-584.66,0.00019745,2]
[359704581,1746267238696,-4147.6,0.00019745,2]
[359704582,1746267238718,-619.92,0.00019745,2]
[359704583,1746267238740,-450.0,0.00019745,2]
[359704584,1746267238762,-707.4842256,0.000199,2]
[359704585,1746267238784,-872.09,0.00019999,2]
[359704586,1746267238807,-505.72372806,0.00019999,2]
[359704587,1746267238830,-450.0,0.00019999,2]
[359704588,1746267238856,-450.0,0.00019999,2]
[359704589,1746267238881,-400047.15776012,0.0002,2]
[359704590,1746267238904,-150.99,0.0002,2]
[359704591,1746267238927,-271.4745152,0.0002,2]
[359704592,1746267238950,-1467.0,0.0002,2]
[359704593,1746267238974,-247784.75140884,0.0002,2]
[359704595,1746267869911,373.67,0.00016879,2]
[359704596,1746267870100,373.67,0.00019143,2]
[359704597,1746267872791,1000.0,0.00018797,2]
[359704598,1746267897240,430.14,0.00018797,2]
[359704599,1746267897440,430.14,0.00018802,2]
[359704600,1746267897626,430.14,0.00018807,2]
[359704601,1746267897817,430.14,0.00018812,2]
[359704602,1746267898019,430.14,0.00018817,2]
[359704603,1746267898228,430.14,0.00018822,2]
[359704604,1746267898427,430.14,0.00018827,2]
[359704605,1746267898633,430.14,0.00018832,2]
[359704606,1746267898842,430.14,0.00018837,2]
[359704607,1746267899044,430.14,0.00018842,2]
[359704608,1746267899253,430.14,0.00018847,2]
[359704609,1746267899448,430.14,0.00018852,2]
[359704610,1746267899639,430.14,0.00018856,2]
[359704611,1746267899842,430.14,0.00018861,2]
[359704612,1746267900048,430.14,0.00018866,2]
[359704613,1746267900464,430.14,0.00018871,2]
[359704614,1746267900877,430.14,0.00018876,2]
[359704615,1746267900927,430.14,0.00018881,2]
[359704616,1746267901101,244.08404575,0.00018886,2]
[359704617,1746267901123,186.05595425,0.00018886,2]
[359704618,1746267901298,430.14,0.00018891,2]
[359704619,1746267910798,374.59374091,0.000154,2]
[359704620,1746267911929,200.0,0.0001881,2]
[359704629,1746268112630,62216.48392416,0.0003,60]
[359704631,1746268158753,250.0,0.00018868,7]
[359704650,1746268231653,-381.62607486,0.00019643,2]
[359704651,1746268231663,-151.0,0.00019645,2]
[359704652,1746268231672,-381.62607486,0.00019672,2]
[359704653,1746268231681,-381.62607486,0.000197,2]
[359704654,1746268231690,-330.730173,0.00019729,2]
[359704655,1746268231701,-50.89590186,0.00019729,2]
[359704656,1746268231711,-1200.0,0.00019732,2]
[359704657,1746268231720,-300.0,0.00019732,2]
[359704658,1746268231730,-151.0,0.00019732,2]
[359704659,1746268231739,-668.65185757,0.00019732,2]
[359704660,1746268231749,-207.4,0.00019732,2]
[359704661,1746268231758,-4625.43886069,0.00019733,2]
[359704662,1746268231768,-200.0,0.00019742,2]
[359704663,1746268231777,-500.0,0.00019742,2]
[359704664,1746268231787,-500.0,0.00019742,2]
[359704665,1746268231796,-500.0,0.00019742,2]
[359704666,1746268231805,-500.0,0.00019742,2]
[359704667,1746268231815,-500.0,0.00019742,2]
[359704668,1746268231824,-399.57621308,0.00019742,2]
[359704669,1746268231839,-100.42378692,0.00019742,2]
[359704670,1746268231848,-500.0,0.00019742,2]
[359704671,1746268231858,-445.92303509,0.00019742,2]
[359704672,1746268231867,-108.21031542,0.00019742,2]
[359704673,1746268231893,-391.78968458,0.00019742,2]
[359704674,1746268231902,-500.0,0.00019742,2]
[359704675,1746268231914,-500.0,0.00019742,2]
[359704676,1746268231923,-500.0,0.00019742,2]
[359704677,1746268231933,-500.0,0.00019742,2]
[359704678,1746268231942,-500.0,0.00019742,2]
[359704679,1746268231951,-500.0,0.00019742,2]
[359704680,1746268231960,-500.0,0.00019742,2]
[359704682,1746268231971,-500.0,0.00019742,2]
[359704684,1746268231980,-500.0,0.00019742,2]
[359704686,1746268231989,-500.0,0.00019742,2]
[359704688,1746268231999,-500.0,0.00019742,2]
[359704690,1746268232008,-500.0,0.00019742,2]
[359704692,1746268232017,-399.99999999,0.00019742,2]
[359704695,1746268232026,-500.0,0.00019742,2]
[359704697,1746268232035,-500.0,0.00019742,2]
[359704699,1746268232044,-450.0,0.00019743,2]
[359704701,1746268232054,-450.0,0.00019743,2]
[359704702,1746268232063,-450.0,0.00019743,2]
[359704705,1746268232073,-614.61,0.00019743,2]
[359704707,1746268232082,-450.0,0.00019743,2]
[359704709,1746268232091,-450.0,0.00019743,2]
[359704710,1746268232100,-450.0,0.00019743,2]
[359704711,1746268232110,-466.33911396,0.00019743,2]
[359704712,1746268232120,-450.0,0.00019743,2]
[359704713,1746268232129,-450.0,0.00019743,2]
[359704714,1746268232139,-450.0,0.00019743,2]
[359704715,1746268232148,-450.0,0.00019743,2]
[359704716,1746268232157,-450.0,0.00019743,2]
[359704717,1746268232166,-450.0,0.00019743,2]
[359704718,1746268232175,-450.0,0.00019743,2]
[359704719,1746268232184,-450.0,0.00019743,2]
[359704720,1746268232193,-450.0,0.00019743,2]
[359704721,1746268232203,-450.0,0.00019743,2]
[359704722,1746268232212,-450.0,0.00019743,2]
[359704723,1746268232220,-450.0,0.00019743,2]
[359704724,1746268232230,-450.0,0.00019743,2]
[359704725,1746268232239,-935.22,0.00019743,2]
[359704726,1746268232249,-215.83,0.00019743,2]
[359704727,1746268232258,-577.56365134,0.00019743,2]
[359704728,1746268232267,-450.0,0.00019743,2]
[359704729,1746268232276,-450.0,0.00019743,2]
[359704730,1746268232286,-450.0,0.00019743,2]
[359704731,1746268232295,-450.0,0.00019743,2]
[359704732,1746268232305,-618.77,0.00019743,2]
[359704733,1746268232314,-450.0,0.00019743,2]
[359704734,1746268232323,-521.01,0.00019743,2]
[359704735,1746268232333,-450.0,0.00019743,2]
[359704736,1746268232342,-450.0,0.00019743,2]
[359704737,1746268232352,-450.0,0.00019743,2]
[359704738,1746268232362,-450.0,0.00019743,2]
[359704739,1746268232372,-450.0,0.00019743,2]
[359704740,1746268232381,-450.0,0.00019743,2]
[359704741,1746268232391,-465.59,0.00019743,2]
[359704742,1746268232400,-450.0,0.00019743,2]
[359704743,1746268232410,-450.0,0.00019743,2]
[359704744,1746268232419,-450.0,0.00019743,2]
[359704745,1746268232429,-450.0,0.00019743,2]
[359704746,1746268232438,-450.0,0.00019743,2]
[359704747,1746268232447,-395.61,0.00019743,2]
[359704748,1746268232456,-450.0,0.00019743,2]
[359704749,1746268232466,-450.0,0.00019743,2]
[359704750,1746268232475,-207.91,0.00019743,2]
[359704751,1746268232484,-586.82018184,0.00019743,2]
[359704752,1746268232493,-450.0,0.00019743,2]
[359704753,1746268232502,-450.0,0.00019743,2]
[359704754,1746268232511,-709.86,0.00019743,2]
[359704755,1746268232520,-4446.34,0.00019743,2]
[359704756,1746268232528,-450.0,0.00019743,2]
[359704757,1746268232537,-801.21,0.00019743,2]
[359704758,1746268232547,-450.0,0.00019743,2]
[359704759,1746268232556,-450.0,0.00019743,2]
[359704760,1746268232566,-450.0,0.00019743,2]
[359704761,1746268232576,-450.0,0.00019743,2]
[359704762,1746268232585,-450.0,0.00019743,2]
[359704763,1746268232595,-450.0,0.00019743,2]
[359704764,1746268232605,-450.0,0.00019743,2]
[359704765,1746268232614,-577.97,0.00019743,2]
[359704766,1746268232625,-450.0,0.00019743,2]
[359704767,1746268232635,-91523.56,0.00019743,2]
[359704768,1746268232644,-450.0,0.00019743,2]
[359704769,1746268232654,-517.43,0.00019743,2]
[359704770,1746268232663,-468.8,0.00019743,2]